bitfinex/quotes_SOLUSD_20251204
["timestamp","ask_amount","ask_price","bid_price","bid_amount"]
[1764866189462,7.76,143.01,142.99,0.69]
[1764866189674,15.41451175,143.01,142.99,0.69]
[1764866190179,7.76,143.01,142.99,0.69]
[1764866190367,7.65451175,143.02,142.99,0.69]
[1764866190368,7.76,143.02,142.99,0.69]
[1764866190569,7.76,143.02,142.99,7.68347984]
[1764866190963,7.76,143.02,143.0,0.69]
[1764866191164,7.65451175,143.05,143.0,8.34451175]
[1764866191463,15.41451175,143.04,143.0,8.34451175]
[1764866191662,15.41451175,143.04,143.01,0.69]
[1764866192382,15.41451175,143.04,143.01,7.68234834]
[1764866192883,7.65451175,143.02,142.99,7.68317959]
[1764866193274,15.41451175,143.01,142.97,0.69]
[1764866193567,7.65451175,143.0,142.97,0.69]
[1764866194173,15.41451175,143.01,142.97,7.68430898]
[1764866194375,0.7,143.03,142.99,7.65451175]
[1764866194376,7.76,143.03,142.99,7.65451175]
[1764866194584,7.76,143.03,142.98,17.15445667]
[1764866194585,15.41451175,143.03,142.98,17.15445667]
[1764866194786,15.41451175,143.03,142.99,0.69]
[1764866195591,7.76,143.03,143.0,8.80994492]
[1764866195989,7.65451175,143.04,143.01,0.69]
[1764866196366,14.75068137,143.05,143.01,7.68226886]
[1764866196571,15.41451175,143.05,143.01,7.68226886]
[1764866196897,7.65451175,143.04,143.02,0.69]
[1764866199589,7.65451175,143.03,143.0,7.68281287]
[1764866199820,7.65451175,143.03,143.01,0.69]
[1764866199971,7.65451175,143.03,143.01,7.6824567]
[1764866200173,7.76,143.05,143.01,8.34451175]
[1764866200370,7.76,143.05,143.0,17.48183521]
[1764866200371,0.2,143.06,143.02,24.14644856]
[1764866200574,0.2,143.06,143.03,7.65451175]
[1764866200780,0.2,143.06,143.04,0.69]
[1764866201274,0.2,143.06,143.05,16.46445667]
[1764866201486,0.2,143.06,143.05,17.15445667]
[1764866201672,7.85451175,143.13,143.05,17.15445667]
[1764866201868,15.41451175,143.12,143.07,16.46445667]
[1764866202074,7.65451175,143.11,143.07,16.46445667]
[1764866202275,15.41451175,143.12,143.08,0.67]
[1764866202498,15.41451175,143.12,143.08,7.65865946]
[1764866202884,7.76,143.12,143.09,0.69]
[1764866203478,0.2,143.13,143.09,8.34451175]
[1764866203675,7.65451175,143.12,143.08,6.98865946]
[1764866203988,7.65451175,143.11,143.08,0.69]
[1764866204180,7.65451175,143.12,143.08,7.67905898]
[1764866204380,7.85451175,143.13,143.1,6.98812019]
[1764866204581,7.65451175,143.11,143.07,6.98948555]
[1764866204782,7.65451175,143.11,143.07,7.67948555]
[1764866205004,15.41451175,143.11,143.08,0.69]
[1764866205375,7.76,143.11,143.08,7.67876356]
[1764866205684,0.2,143.13,143.1,7.65451175]
[1764866205885,0.2,143.13,143.1,0.69]
[1764866206093,0.2,143.13,143.08,6.98898012]
[1764866206094,7.65451175,143.12,143.08,6.98898012]
[1764866206402,7.65451175,143.11,143.07,6.98943002]
[1764866206576,14.64237082,143.11,143.07,7.67943002]
[1764866206777,14.64237082,143.11,143.08,0.69]
[1764866207272,7.65451175,143.1,143.08,0.69]
[1764866207476,16.308864,143.06,143.02,0.69]
[1764866207805,7.65451175,143.03,143.0,6.99266723]
[1764866207976,7.65451175,143.03,142.99,0.69]
[1764866207977,24.788864,143.06,142.99,25.82725879]
[1764866208175,7.76,143.05,143.02,6.99197269]
[1764866208383,15.41451175,143.05,143.01,15.80246292]
[1764866208594,15.41451175,143.05,143.02,0.69]
[1764866209399,7.65451175,143.04,143.02,0.69]
[1764866209710,7.65451175,143.04,143.01,6.992518]
[1764866210003,7.65451175,143.02,142.98,26.98482115]
[1764866210193,0.72,143.03,142.98,7.68385285]
[1764866210397,32.22709299,143.05,142.99,0.69]
[1764866210610,7.65451175,143.02,142.99,0.69]
[1764866210786,7.65451175,143.01,142.98,6.99385285]
[1764866210986,7.65451175,143.01,142.98,7.68385285]
[1764866211985,15.41451175,143.02,142.99,7.68342663]
[1764866212306,7.65451175,143.01,142.99,7.68342663]
[1764866212479,11.81099537,143.01,142.99,0.69]
[1764866212684,19.57099537,143.02,142.99,0.69]
[1764866213710,11.81099537,143.01,142.98,6.99389897]
[1764866214012,11.81099537,143.01,142.98,7.68389897]
[1764866215005,11.81099537,143.01,142.97,5.29720798]
[1764866215198,11.81099537,143.01,142.96,11.81099537]
[1764866215913,20.29099537,143.02,142.97,11.81099537]
[1764866216411,20.29099537,143.02,142.98,6.99389897]
[1764866216614,11.81099537,143.01,142.98,6.99389897]
[1764866217280,16.308864,143.03,142.99,0.69]
[1764866217281,6.9916436,143.03,142.99,0.69]
[1764866217481,11.81099537,143.03,142.99,0.69]
[1764866217684,12.53099537,143.02,142.97,36.98165564]
[1764866217990,12.53099537,143.02,142.98,0.69]
[1764866218894,12.53099537,143.01,142.97,24.48066027]
[1764866219094,20.29099537,143.01,142.97,24.48066027]
[1764866219292,20.29099537,143.01,142.97,25.17066027]
[1764866220594,7.76,143.01,142.98,0.69]
[1764866220791,7.71146952,143.04,142.98,12.50099537]
[1764866220792,19.57099537,143.03,142.98,12.50099537]
[1764866220987,11.81099537,143.03,142.98,12.50099537]
[1764866221197,7.76,143.03,142.99,12.50099537]
[1764866221511,11.81099537,143.05,143.0,11.81099537]
[1764866221698,19.57099537,143.05,143.0,12.50099537]
[1764866221901,20.29099537,143.05,143.01,0.69]
[1764866222292,11.81099537,143.04,143.01,0.69]
[1764866222601,11.81099537,143.04,143.01,7.68218305]
[1764866223189,12.53099537,143.03,142.97,29.98655846]
[1764866223388,11.81099537,143.01,142.97,18.17556309]
[1764866223587,11.81099537,143.01,142.98,6.99366323]
[1764866224500,11.81099537,143.01,142.98,7.68366323]
[1764866224683,20.29099537,143.02,142.98,7.68366323]
[1764866225085,7.76,143.02,142.98,36.28962153]
[1764866225312,19.57099537,143.03,142.99,12.50099537]
[1764866225531,11.81099537,143.01,142.98,6.99366323]
[1764866225821,11.81099537,143.01,142.96,55.10682599]
[1764866225997,11.81099537,143.01,142.97,0.69]
[1764866226702,11.81099537,143.01,142.98,6.99393656]
[1764866227013,27.28353046,143.01,142.98,6.99393656]
[1764866227217,26.56353046,143.01,142.96,36.92980429]
[1764866227425,26.56353046,143.01,142.95,6.99530352]
[1764866227426,11.81099537,142.98,142.95,6.99530352]
[1764866227922,12.53099537,142.99,142.95,0.69]
[1764866228093,0.72,143.0,142.94,17.48929767]
[1764866228295,11.81099537,142.99,142.94,29.99029304]
[1764866228495,11.81099537,142.99,142.95,6.99516162]
[1764866228712,12.53099537,142.99,142.95,6.99516162]
[1764866229899,12.53099537,142.99,142.95,7.68516162]
[1764866231017,11.81099537,142.98,142.95,6.99516162]
[1764866231219,18.80563112,142.97,142.92,41.56069989]
[1764866231401,18.80563112,142.97,142.92,46.30169526]
[1764866231601,19.52563112,142.97,142.93,0.69]
[1764866232497,19.52618532,142.96,142.91,12.50099537]
[1764866232799,12.53099537,142.96,142.92,6.99687345]
[1764866233008,0.72,142.96,142.92,6.99687345]
[1764866233211,19.48602924,142.96,142.92,6.99687345]
[1764866233398,19.48602924,142.96,142.92,7.68687345]
[1764866233717,0.68,142.96,142.92,7.68687345]
[1764866233917,18.80563341,142.97,142.92,7.68687345]
[1764866234238,11.81099537,142.97,142.93,0.69]
[1764866234603,20.25099537,142.98,142.94,6.99594235]
[1764866235009,0.68,142.97,142.94,6.99594235]
[1764866235793,20.25099537,142.98,142.94,6.99594235]
[1764866236023,20.25099537,142.98,142.94,7.68594235]
[1764866237923,20.25099537,142.98,142.9,0.69]
[1764866237924,11.81099537,142.95,142.9,0.69]
[1764866238226,19.57099537,142.95,142.91,6.99730277]
[1764866238521,12.49099537,142.94,142.92,6.99677841]
[1764866239404,11.81099537,142.94,142.91,6.99741095]
[1764866239603,19.57099537,142.95,142.91,6.99741095]
[1764866239820,7.76,142.95,142.92,0.69]
[1764866240010,19.57099537,142.95,142.92,0.69]
[1764866240733,7.76,142.95,142.92,0.69]
[1764866241606,7.76,142.95,142.93,6.99643181]
[1764866241817,19.57099537,142.96,142.93,6.99643181]
[1764866242017,20.25099537,142.96,142.93,6.99643181]
[1764866243821,19.57099537,142.96,142.93,7.68643181]
[1764866244030,19.57099537,142.96,142.93,6.99643181]
[1764866244206,20.25099537,142.96,142.93,6.99643181]
[1764866244742,11.81099537,142.94,142.92,6.99673282]
[1764866244903,11.81099537,142.94,142.87,16.308864]
[1764866244904,19.57099537,142.93,142.87,12.50099537]
[1764866245106,11.81099537,142.92,142.87,11.81099537]
[1764866245324,11.81099537,142.92,142.9,6.99761694]
[1764866246114,0.68,142.91,142.89,6.99839037]
[1764866246318,12.49099537,142.91,142.88,6.99869906]
[1764866246720,0.68,142.91,142.88,6.99869906]
[1764866246907,12.49099537,142.91,142.88,6.99869906]
[1764866247327,0.68,142.91,142.88,6.99869906]
[1764866247534,11.81099537,142.91,142.88,6.99869906]
[1764866247842,6.99704272,142.92,142.83,7.10113714]
[1764866247843,11.81099537,142.89,142.83,7.10113714]
[1764866248014,11.81099537,142.85,142.83,7.10113714]
[1764866248415,16.308864,142.9,142.84,0.69]
[1764866248607,11.81099537,142.88,142.84,0.69]
[1764866249005,11.81099537,142.87,142.83,7.10113714]
[1764866249204,11.81099537,142.87,142.83,7.79113714]
[1764866249619,11.81099537,142.87,142.83,25.29446277]
[1764866250040,7.76,142.89,142.83,36.41545814]
[1764866250213,11.81099537,142.9,142.84,9.49994492]
[1764866250420,11.81099537,142.89,142.85,0.69]
[1764866251539,11.81099537,142.89,142.84,20.62094029]
[1764866251540,0.68,142.88,142.86,6.99986]
[1764866251708,11.81099537,142.88,142.86,6.99986]
[1764866252119,11.81099537,142.89,142.86,6.99986]
[1764866252375,7.76,142.9,142.87,0.69]
[1764866253335,7.76,142.9,142.88,6.99888017]
[1764866253535,19.57099537,142.9,142.88,6.99888017]
[1764866254243,7.76,142.9,142.88,6.99888017]
[1764866254726,8.44,142.9,142.88,6.99888017]
[1764866255043,5.13825112,142.92,142.88,7.68888017]
[1764866255243,12.89825112,142.92,142.88,7.68888017]
[1764866255539,8.44,142.92,142.88,29.64433173]
[1764866257229,7.76,142.92,142.9,6.99790062]
[1764866257534,12.89825112,142.94,142.9,11.45615174]
[1764866257735,4.45825112,142.95,142.9,28.95090331]
[1764866258046,12.89825112,142.96,142.91,5.14825112]
[1764866258253,7.76,142.96,142.92,4.45825112]
[1764866258451,7.76,142.96,142.9,24.49265219]
[1764866258746,4.45825112,142.93,142.9,6.99790062]
[1764866259247,5.13825112,142.93,142.9,6.99790062]
[1764866259624,5.13825112,142.93,142.89,6.99839037]
[1764866260044,4.45825112,142.93,142.89,6.99839037]
[1764866260339,5.13825112,142.93,142.89,6.99839037]
[1764866260542,5.13825112,142.95,142.9,5.14825112]
[1764866261047,0.68,142.94,142.9,5.14825112]
[1764866261554,0.68,142.94,142.9,4.45825112]
[1764866261747,5.13825112,142.94,142.89,29.64261741]
[1764866261943,4.45825112,142.93,142.89,24.49436629]
[1764866262132,0.68,142.92,142.89,24.49436629]
[1764866262451,4.45825112,142.91,142.89,6.99839037]
[1764866262952,0.7,142.9,142.89,6.99839037]
[1764866263142,4.45825112,142.91,142.89,6.99839037]
[1764866263350,0.7,142.91,142.89,6.99839037]
[1764866263948,0.7,142.91,142.88,17.49658647]
[1764866268028,7.76,142.92,142.89,0.7]
[1764866268249,7.76,142.92,142.9,6.99790062]
[1764866268630,0.7,142.94,142.91,0.7]
[1764866269157,4.45825112,142.97,142.92,8.80994492]
[1764866269330,12.91825112,142.98,142.92,13.26819604]
[1764866269539,8.46,142.98,142.93,5.15825112]
[1764866269838,5.15825112,142.97,142.92,13.26819604]
[1764866270248,0.7,142.96,142.93,24.48751135]
[1764866271232,5.15825112,142.96,142.93,24.48751135]
[1764866271552,0.7,142.96,142.93,24.48751135]
[1764866273661,5.15825112,142.96,142.93,24.48751135]
[1764866274535,3.55115187,142.95,142.92,6.99670329]
[1764866274756,2.85115187,142.94,142.91,6.99718999]
[1764866275060,3.55115187,142.93,142.91,6.99718999]
[1764866275232,3.55115187,142.93,142.89,17.49527989]
[1764866275437,0.7,142.92,142.91,6.99739264]
[1764866276366,0.7,142.92,142.91,6.99741095]
[1764866276544,0.7,142.92,142.89,24.49367026]
[1764866278462,3.55115187,142.92,142.89,24.49367026]
[1764866278638,3.55115187,142.92,142.89,17.49527989]
[1764866278965,0.7,142.91,142.89,17.49527989]
[1764866279855,0.7,142.91,142.88,6.99888017]
[1764866280163,0.7,142.91,142.88,24.49608061]
[1764866280465,3.55115187,142.93,142.88,28.04723248]
[1764866280669,0.7,142.92,142.88,28.04723248]
[1764866280875,2.85115187,142.93,142.89,0.7]
[1764866281173,2.85115187,142.94,142.89,12.36109679]
[1764866281378,0.7,142.96,142.9,11.66109679]
[1764866281555,3.55115187,142.96,142.91,2.85115187]
[1764866281757,2.85115187,142.95,142.91,6.99741095]
[1764866281965,3.55115187,142.95,142.91,7.69741095]
[1764866282137,3.55115187,142.95,142.91,25.19093834]
[1764866282468,7.76,142.97,142.92,9.50994492]
[1764866282655,0.7,142.98,142.94,2.85115187]
[1764866282858,0.7,142.98,142.93,3.55115187]
[1764866283164,2.85115187,142.97,142.92,8.80994492]
[1764866283359,2.85115187,142.95,142.91,24.49093834]
[1764866283557,3.55115187,142.95,142.91,24.49093834]
[1764866283763,0.7,142.95,142.91,25.19093834]
[1764866284063,0.7,142.95,142.91,28.04209021]
[1764866284447,0.7,142.95,142.91,25.19093834]
[1764866284647,2.85115187,142.94,142.91,6.99741095]
[1764866285045,0.7,142.93,142.91,6.99741095]
[1764866285549,0.7,142.93,142.9,6.99790062]
[1764866285750,3.55115187,142.93,142.9,6.99790062]
[1764866285970,2.85115187,142.94,142.9,25.19265219]
[1764866286273,3.55115187,142.94,142.9,24.49265219]
[1764866286483,0.7,142.93,142.9,24.49265219]
[1764866287156,0.7,142.92,142.87,16.308864]
[1764866287391,0.7,142.92,142.83,0.1]
[1764866287392,27.71347148,142.88,142.83,0.8]
[1764866287667,7.8,142.91,142.83,0.8]
[1764866287668,16.308864,142.86,142.83,0.8]
[1764866287966,7.82,142.87,142.83,10.65227583]
[1764866287967,16.308864,142.87,142.83,10.65227583]
[1764866288150,16.308864,142.87,142.84,3.55115187]
[1764866288350,24.128864,142.9,142.85,3.55115187]
[1764866288550,26.98001587,142.9,142.85,0.7]
[1764866288771,2.85115187,142.88,142.85,0.7]
[1764866289067,24.128864,142.9,142.85,0.7]
[1764866289068,0.7,142.89,142.85,7.70033503]
[1764866289257,24.128864,142.9,142.85,10.5514869]
[1764866289258,24.828864,142.9,142.85,10.5514869]
[1764866289457,27.68001587,142.9,142.86,0.7]
[1764866289776,34.67796484,142.9,142.86,0.7]
[1764866290003,2.85115187,142.89,142.84,10.55188663]
[1764866290203,0.7,142.89,142.83,0.1]
[1764866290380,0.7,142.89,142.83,7.80122236]
[1764866290711,2.85115187,142.88,142.83,7.80122236]
[1764866291075,3.55115187,142.88,142.83,7.80122236]
[1764866291280,7.69892159,142.88,142.84,0.7]
[1764866291503,2.85115187,142.87,142.84,0.7]
[1764866291883,2.85115187,142.87,142.83,0.8]
[1764866292578,6.99901976,142.88,142.83,0.1]
[1764866292778,2.85115187,142.84,142.83,0.1]
[1764866293509,3.57115187,142.84,142.83,0.1]
[1764866293680,0.72,142.84,142.83,0.1]
[1764866294197,10.67115187,142.86,142.83,0.1]
[1764866294402,7.6492245,142.85,142.83,0.1]
[1764866294787,8.3692245,142.84,142.83,0.1]
[1764866295181,15.3700646,142.84,142.83,0.1]
[1764866296093,7.7208401,142.84,142.83,0.1]
[1764866296285,15.3700646,142.84,142.83,0.1]
[1764866296481,24.18000952,142.84,142.83,0.1]
[1764866296681,16.53078502,142.84,142.83,0.1]
[1764866296886,15.3700646,142.84,142.83,0.1]
[1764866297797,15.3700646,142.84,142.77,15.1433945]
[1764866298000,8.54,142.83,142.77,15.1433945]
[1764866298206,7.6492245,142.82,142.77,15.1433945]
[1764866298403,7.82,142.83,142.78,7.6492245]
[1764866298605,0.72,142.82,142.74,41.7420314]
[1764866298794,7.6492245,142.79,142.76,7.00474214]
[1764866298991,7.6492245,142.8,142.76,14.65396664]
[1764866299388,7.6492245,142.79,142.75,14.6543717]
[1764866299592,7.6492245,142.79,142.75,7.0051472]
[1764866299794,7.00231076,142.81,142.76,0.69]
[1764866300007,7.6492245,142.8,142.76,0.69]
[1764866300517,8.54,142.79,142.74,23.41458429]
[1764866300721,7.6492245,142.78,142.74,23.41458429]
[1764866300918,7.6492245,142.78,142.74,24.10458429]
[1764866301085,7.82,142.79,142.74,16.408864]
[1764866301289,15.4692245,142.79,142.75,7.69525368]
[1764866301619,15.4692245,142.79,142.76,7.0047524]
[1764866301798,7.82,142.8,142.76,15.3439769]
[1764866301998,7.82,142.8,142.77,0.69]
[1764866302482,7.82,142.8,142.75,7.6492245]
[1764866302681,7.82,142.8,142.77,7.00421297]
[1764866302909,15.4692245,142.8,142.76,7.69442119]
[1764866303206,7.82,142.8,142.77,7.69420234]
[1764866303623,15.4692245,142.8,142.76,7.00464571]
[1764866303791,7.6492245,142.79,142.75,7.005083]
[1764866304121,7.6492245,142.79,142.75,7.695083]
[1764866304315,7.6492245,142.79,142.76,7.00469911]
[1764866304892,7.6492245,142.79,142.75,7.00519993]
[1764866304893,7.6492245,142.78,142.75,7.00519993]
[1764866305117,7.6492245,142.79,142.75,7.69519993]
[1764866305641,7.6492245,142.79,142.75,7.00519993]
[1764866305805,7.6492245,142.79,142.75,7.69519993]
[1764866306009,15.4692245,142.8,142.75,14.65442443]
[1764866306219,15.4692245,142.81,142.77,7.6492245]
[1764866306506,7.6492245,142.83,142.78,7.6492245]
[1764866306734,67.33133589,142.83,142.67,104.7737938]
[1764866307045,23.9580885,142.68,142.67,0.1]
[1764866307210,31.7780885,142.68,142.67,0.1]
[1764866307413,16.308864,142.68,142.67,0.1]
[1764866307614,40.58803342,142.68,142.67,0.1]
[1764866307836,16.62994492,142.68,142.67,0.1]
[1764866308041,40.58803342,142.68,142.67,0.1]
[1764866308218,31.7780885,142.68,142.67,0.1]
[1764866308612,38.78677927,142.68,142.67,0.1]
[1764866309555,47.59672419,142.68,142.67,0.1]
[1764866310323,16.308864,142.66,142.65,0.1]
[1764866310518,40.41725792,142.66,142.65,0.1]
[1764866310714,47.42693126,142.66,142.65,0.1]
[1764866311051,64.95111463,142.66,142.6,0.1]
[1764866311209,8.80994492,142.64,142.6,0.1]
[1764866311410,7.6492245,142.61,142.6,0.1]
[1764866311719,15.4692245,142.61,142.6,0.1]
[1764866313254,7.82,142.61,142.6,0.1]
[1764866313447,7.6492245,142.61,142.6,0.1]
[1764866313750,15.4692245,142.61,142.6,0.1]
[1764866314308,31.2913004,142.61,142.6,0.1]
[1764866314733,22.48135548,142.61,142.6,0.1]
[1764866315319,8.80994492,142.6,142.53,0.69]
[1764866315521,7.6492245,142.55,142.53,0.69]
[1764866315737,7.6492245,142.54,142.53,0.69]
[1764866316268,7.6492245,142.54,142.51,23.32587749]
[1764866316416,7.6492245,142.53,142.52,0.69]
[1764866316747,7.6492245,142.54,142.5,17.5437537]
[1764866316946,7.6492245,142.55,142.51,7.01705143]
[1764866317241,7.82,142.56,142.51,7.70705143]
[1764866317425,7.82,142.56,142.52,0.69]
[1764866317828,7.6492245,142.55,142.52,0.69]
[1764866318213,7.82,142.56,142.52,0.69]
[1764866318435,23.32249668,142.58,142.52,0.69]
[1764866318834,7.82,142.57,142.52,0.69]
[1764866319038,14.83448672,142.57,142.52,7.70647969]
[1764866319241,7.6492245,142.55,142.52,7.70647969]
[1764866319442,7.6492245,142.55,142.53,0.69]
[1764866319642,7.82,142.56,142.53,0.69]
[1764866320049,7.6492245,142.54,142.53,0.69]
[1764866320448,7.82,142.56,142.53,0.69]
[1764866320655,49.66322737,142.6,142.53,0.69]
[1764866320656,32.13167057,142.6,142.53,0.69]
[1764866320857,7.6492245,142.56,142.53,0.69]
[1764866321057,7.6492245,142.57,142.54,7.01557457]
[1764866321258,17.52678446,142.64,142.55,0.69]
[1764866321460,7.6492245,142.6,142.55,8.3392245]
[1764866321669,7.84,142.6,142.55,0.69]
[1764866321846,7.84,142.6,142.56,0.69]
[1764866322041,7.84,142.62,142.56,0.69]
[1764866322261,7.6492245,142.61,142.56,0.69]
[1764866322466,7.6492245,142.6,142.56,0.69]
[1764866322769,7.6492245,142.61,142.57,7.01409833]
[1764866323165,7.6492245,142.61,142.58,0.7]
[1764866323544,15.4892245,142.61,142.58,0.7]
[1764866324867,7.84,142.61,142.58,15.3624037]
[1764866325070,7.01042571,142.65,142.59,0.7]
[1764866325266,15.4892245,142.64,142.59,8.3492245]
[1764866325788,7.0092431,142.67,142.61,7.6492245]
[1764866325949,7.84,142.67,142.6,0.7]
[1764866326151,7.6492245,142.66,142.6,0.7]
[1764866326469,7.6492245,142.65,142.6,0.7]
[1764866326672,7.84,142.67,142.61,7.6492245]
[1764866326865,15.4892245,142.67,142.63,7.01114772]
[1764866327065,15.4892245,142.67,142.64,0.7]
[1764866327266,7.84,142.67,142.64,0.7]
[1764866327869,24.52908305,142.69,142.64,0.7]
[1764866328073,7.6492245,142.66,142.62,7.71145991]
[1764866328374,7.6492245,142.67,142.63,0.7]
[1764866328552,24.52908305,142.69,142.63,0.7]
[1764866328755,7.84,142.68,142.63,0.7]
[1764866328949,14.65840652,142.67,142.63,0.7]
[1764866329175,7.6492245,142.66,142.63,0.7]
[1764866329355,7.6492245,142.66,142.63,7.71099015]
[1764866329761,7.6492245,142.65,142.61,0.7]
[1764866329971,15.4892245,142.65,142.61,7.01176764]
[1764866330174,15.4892245,142.65,142.62,0.7]
[1764866330381,15.4892245,142.65,142.62,7.71161522]
[1764866330677,7.6492245,142.64,142.59,17.5326328]
[1764866330851,7.6492245,142.64,142.6,0.7]
[1764866331051,22.49966313,142.65,142.6,7.71230394]
[1764866331254,22.49966313,142.65,142.6,15.36152844]
[1764866331555,22.49966313,142.65,142.61,0.7]
[1764866331755,7.6492245,142.64,142.61,0.7]
[1764866332084,7.6492245,142.62,142.59,0.7]
[1764866332250,7.84,142.62,142.59,0.7]
[1764866332572,7.84,142.63,142.6,14.66178141]
[1764866332786,7.84,142.63,142.54,16.64994492]
[1764866332958,14.85145977,142.63,142.56,14.66381484]
[1764866333157,7.84,142.63,142.59,7.6492245]
[1764866333354,7.84,142.63,142.57,0.7]
[1764866333556,15.4892245,142.63,142.57,0.7]
[1764866333767,7.6492245,142.62,142.57,8.3492245]
[1764866333973,7.84,142.63,142.59,7.6492245]
[1764866334482,7.84,142.63,142.6,0.7]
[1764866334676,15.4892245,142.63,142.6,0.7]
[1764866335065,7.84,142.63,142.6,0.7]
[1764866335388,15.4892245,142.63,142.6,0.7]
[1764866335770,7.84,142.63,142.6,0.7]
[1764866336485,7.84,142.63,142.6,7.71249713]
[1764866336877,7.84,142.63,142.61,0.7]
[1764866337095,26.72448615,142.63,142.6,0.7]
[1764866337476,14.85119017,142.63,142.6,0.7]
[1764866337806,7.84,142.63,142.6,0.7]
[1764866338007,19.71329598,142.63,142.6,0.7]
[1764866338299,7.84,142.63,142.6,0.7]
[1764866338478,19.71329598,142.63,142.6,0.7]
[1764866338869,11.87329598,142.62,142.6,0.7]
[1764866339195,11.87329598,142.62,142.6,7.71229514]
[1764866339491,19.71329598,142.63,142.6,7.71229514]
[1764866339667,11.87329598,142.62,142.6,7.71229514]
[1764866340169,11.87329598,142.62,142.6,0.7]
[1764866340372,14.85120804,142.63,142.6,0.7]
[1764866340573,11.87329598,142.62,142.6,0.7]
[1764866340793,11.87329598,142.62,142.57,17.5349545]
[1764866340794,11.87329598,142.61,142.58,7.71341522]
[1764866340994,11.87329598,142.61,142.58,0.7]
[1764866341199,7.84,142.6,142.58,0.7]
[1764866341493,11.87329598,142.59,142.54,0.7]
[1764866341669,7.84,142.6,142.54,0.7]
[1764866341872,7.84,142.6,142.54,7.71553841]
[1764866342071,11.87329598,142.57,142.54,7.71553841]
[1764866342290,19.71329598,142.57,142.54,7.71553841]
[1764866342474,19.71329598,142.57,142.55,0.7]
[1764866342679,7.84,142.57,142.54,0.7]
[1764866343001,19.71329598,142.57,142.54,0.7]
[1764866343386,11.87329598,142.56,142.52,7.01639236]
[1764866343588,11.87329598,142.55,142.52,7.71639236]
[1764866344310,11.87329598,142.55,142.53,0.7]
[1764866344596,11.87329598,142.55,142.52,0.7]
[1764866344799,32.38936231,142.57,142.5,17.5432937]
[1764866344800,11.87329598,142.53,142.5,0.7]
[1764866344988,19.71329598,142.53,142.5,0.7]
[1764866345191,19.71329598,142.53,142.5,7.71753046]
[1764866345377,7.84,142.53,142.5,7.71753046]
[1764866345580,7.84,142.53,142.51,0.7]
[1764866345980,7.84,142.55,142.51,12.57329598]
[1764866346188,19.71329598,142.55,142.51,0.7]
[1764866346508,20.6832409,142.6,142.52,12.57329598]
[1764866346509,17.53159801,142.6,142.52,12.57329598]
[1764866346799,11.87329598,142.58,142.53,11.87329598]
[1764866347003,11.87329598,142.58,142.53,12.57329598]
[1764866347307,11.87329598,142.58,142.54,7.71533159]
[1764866347486,11.87329598,142.58,142.55,0.7]
[1764866347694,11.87329598,142.56,142.53,7.01589659]
[1764866347893,11.87329598,142.56,142.51,0.7]
[1764866347894,11.87329598,142.54,142.51,0.7]
[1764866348286,7.84,142.56,142.51,0.7]
[1764866348487,11.87329598,142.53,142.51,0.7]
[1764866348691,7.84,142.53,142.51,0.7]
[1764866348914,19.71329598,142.53,142.51,0.7]
[1764866349230,19.71329598,142.53,142.49,0.7]
[1764866349231,11.87329598,142.52,142.49,0.7]
[1764866349376,11.87329598,142.51,142.49,0.7]
[1764866349581,11.87329598,142.52,142.49,0.7]
[1764866349784,32.39624981,142.53,142.49,0.7]
[1764866350004,11.87329598,142.51,142.49,0.7]
[1764866350222,32.39624981,142.53,142.49,0.7]
[1764866350420,11.87329598,142.51,142.49,0.7]
[1764866351218,7.84,142.53,142.49,0.7]
[1764866351420,11.87329598,142.51,142.48,7.01834546]
[1764866351619,11.87329598,142.51,142.47,7.71890979]
[1764866351819,19.71329598,142.51,142.47,7.71890979]
[1764866352023,19.71329598,142.51,142.48,7.71850317]
[1764866352334,19.71329598,142.51,142.48,0.7]
[1764866352632,19.71329598,142.51,142.49,0.7]
[1764866353634,7.84,142.51,142.49,7.71780019]
[1764866354008,7.84,142.51,142.49,7.72780019]
[1764866354848,7.84,142.51,142.5,0.71]